bitfinex-derivatives/quotes_BTCF0:USTF0_20241110
["timestamp","ask_amount","ask_price","bid_price","bid_amount"]
[1731271836329,0.00189209,79336.0,79335.0,0.57824795]
[1731271836529,0.00189209,79336.0,79335.0,0.72096795]
[1731271839740,0.0412,79349.0,79347.0,0.062972]
[1731271839934,0.0412,79349.0,79341.0,0.062977]
[1731271840139,0.0412,79349.0,79343.0,0.3608]
[1731271840531,0.00010202,79348.0,79335.0,0.59576459]
[1731271840737,0.062975,79344.0,79335.0,0.56659507]
[1731271840936,0.062975,79344.0,79336.0,0.18915174]
[1731271841144,0.062975,79344.0,79337.0,0.06298]
[1731271841447,0.00010202,79348.0,79342.0,0.423777]
[1731271842547,0.06307402,79348.0,79342.0,0.423777]
[1731271843144,0.062973,79347.0,79342.0,0.3608]
[1731271843536,0.00010202,79348.0,79343.0,0.062976]
[1731271844035,0.00010202,79348.0,79346.0,0.12201082]
[1731271844240,0.00010202,79348.0,79346.0,0.18498382]
[1731271847747,0.00010202,79348.0,79346.0,0.21268817]
[1731271849348,0.01517016,79347.0,79346.0,0.21268817]
[1731271849544,0.00010202,79348.0,79346.0,0.21268817]
[1731271850750,0.00010202,79348.0,79347.0,0.18794769]
[1731271854655,0.0393,79358.0,79357.0,0.062965]
[1731271854842,0.0393,79358.0,79357.0,0.54577582]
[1731271855650,0.03946,79358.0,79357.0,0.48281082]
[1731271855849,0.03946,79358.0,79346.0,0.02770435]
[1731271856045,0.06297,79351.0,79345.0,0.12201082]
[1731271856241,0.06297,79351.0,79347.0,0.1899773]
[1731271856437,0.06297,79351.0,79346.0,0.1899773]
[1731271856644,0.06297,79351.0,79345.0,0.12201082]
[1731271857148,0.06297,79351.0,79346.0,0.1899773]
[1731271857448,0.0423,79353.0,79344.0,0.02808318]
[1731271857449,0.062974,79346.0,79344.0,0.02808318]
[1731271857658,0.062982,79336.0,79320.0,0.12201082]
[1731271857842,0.062982,79336.0,79323.0,0.062991]
[1731271858040,0.441142,79336.0,79323.0,0.062991]
[1731271859145,0.441142,79336.0,79321.0,0.12201082]
[1731271859543,0.062984,79333.0,79332.0,0.02834443]
[1731271859749,0.06465214,79333.0,79317.0,0.00189089]
[1731271859945,0.3608,79329.0,79314.0,0.00582]
[1731271860140,0.062998,79316.0,79314.0,0.00582]
[1731271860342,0.062998,79316.0,79314.0,0.03439057]
[1731271860542,0.062998,79316.0,79314.0,0.00582]
[1731271860946,0.10506872,79315.0,79314.0,0.00582]
[1731271861249,0.17754016,79315.0,79314.0,0.00582]
[1731271861446,0.10506872,79315.0,79314.0,0.00582]
[1731271863254,0.0412,79315.0,79314.0,0.00582]
[1731271863862,0.36734,79336.0,79314.0,0.12783082]
[1731271864054,0.06397734,79327.0,79325.0,0.06299]
[1731271864359,0.062984,79333.0,79326.0,0.18499982]
[1731271864753,0.062987,79330.0,79326.0,0.062989]
[1731271866057,0.062987,79330.0,79323.0,0.3608]
[1731271866058,0.0386,79334.0,79327.0,0.062989]
[1731271866248,0.0386,79334.0,79323.0,0.38844444]
[1731271866450,0.0386,79334.0,79323.0,0.45143544]
[1731271866647,0.062983,79335.0,79323.0,0.45143544]
[1731271866862,0.36144,79336.0,79335.0,0.12201082]
[1731271866863,0.00068,79336.0,79335.0,0.12201082]
[1731271867164,0.0471,79357.0,79349.0,0.062971]
[1731271867454,0.0413,79357.0,79355.0,0.12201082]
[1731271868059,0.104265,79357.0,79349.0,0.12201082]
[1731271869857,0.465065,79357.0,79349.0,0.12201082]
[1731271870262,0.4021,79357.0,79347.0,0.425493]
[1731271870461,0.4021,79357.0,79347.0,0.423773]
[1731271871262,0.0413,79357.0,79350.0,0.06297]
[1731271871662,0.062968,79354.0,79350.0,0.06297]
[1731271871858,0.0413,79357.0,79347.0,0.3608]
[1731271872265,0.06297,79351.0,79347.0,0.02764842]
[1731271872565,0.06297,79351.0,79346.0,0.18300996]
[1731271872761,0.0413,79357.0,79346.0,0.18300996]
[1731271872965,0.0413,79357.0,79345.0,0.062974]
[1731271873168,0.06297,79351.0,79347.0,0.062972]
[1731271873369,0.062967,79355.0,79350.0,0.062971]
[1731271873775,0.062969,79352.0,79348.0,0.3608]
[1731271874969,0.104266,79357.0,79352.0,0.062969]
[1731271875160,0.062968,79354.0,79352.0,0.062969]
[1731271876759,0.062968,79354.0,79348.0,0.3608]
[1731271877469,0.062972,79349.0,79346.0,0.062973]
[1731271878668,0.062967,79355.0,79348.0,0.3608]
[1731271879076,0.0413,79357.0,79348.0,0.3608]
[1731271879281,0.06297,79351.0,79348.0,0.3608]
[1731271879678,0.062971,79349.0,79348.0,0.3608]
[1731271879876,0.062971,79349.0,79346.0,0.062974]
[1731271880874,0.062972,79348.0,79346.0,0.062974]
[1731271883270,0.062969,79352.0,79348.0,0.062972]
[1731271883476,0.3608,79354.0,79348.0,0.062972]
[1731271885080,0.062971,79350.0,79348.0,0.062972]
[1731271886885,0.3608,79354.0,79345.0,0.21116991]
[1731271887187,0.062974,79346.0,79345.0,0.02815995]
[1731271887386,0.062974,79346.0,79340.0,0.3608]
[1731271887579,0.062974,79346.0,79344.0,0.062975]
[1731271887888,0.3608,79354.0,79341.0,0.188892]
[1731271887889,0.062977,79342.0,79341.0,0.188892]
[1731271888190,0.062984,79333.0,79326.0,0.062989]
[1731271888576,0.062979,79340.0,79333.0,0.062983]
[1731271888775,0.2922,79341.0,79332.0,0.388589]
[1731271888978,0.06298,79338.0,79332.0,0.388589]
[1731271889178,0.2922,79341.0,79339.0,0.062979]
[1731271889381,0.2922,79341.0,79340.0,0.54380996]
[1731271889584,0.2922,79341.0,79340.0,0.81551195]
[1731271890079,0.062966,79356.0,79351.0,0.062969]
[1731271890478,0.062967,79355.0,79350.0,0.3608]
[1731271890680,0.062967,79355.0,79345.0,0.062974]
[1731271890879,0.062967,79355.0,79346.0,0.12199673]
[1731271891085,0.062967,79355.0,79347.0,0.062973]
[1731271891483,0.00016,79358.0,79347.0,0.062973]
[1731271891792,0.062968,79353.0,79347.0,0.062973]
[1731271892781,0.062973,79347.0,79345.0,0.02842317]
[1731271892983,0.062973,79347.0,79322.0,0.00189078]
[1731271892984,0.3608,79347.0,79328.0,0.062988]
[1731271893283,0.062983,79334.0,79329.0,0.0283949]
[1731271893495,0.0416,79333.0,79322.0,0.06488378]
[1731271893793,0.062988,79328.0,79323.0,0.062992]
[1731271894980,0.0416,79333.0,79322.0,0.03039027]
[1731271895180,0.423792,79324.0,79322.0,0.02849949]
[1731271895387,0.423792,79324.0,79309.0,0.063003]
[1731271895388,0.062997,79317.0,79309.0,0.063003]
[1731271895687,0.01484488,79316.0,79312.0,0.063001]
[1731271895981,0.01484488,79315.0,79312.0,0.063001]
[1731271896184,0.01484488,79321.0,79312.0,0.063001]
[1731271896386,0.3608,79324.0,79312.0,0.063001]
[1731271896387,0.01484488,79320.0,79312.0,0.063001]
[1731271896589,0.062998,79316.0,79310.0,0.12199673]
[1731271896889,0.01484488,79315.0,79306.0,0.102605]
[1731271897186,0.01484488,79315.0,79306.0,0.0396]
[1731271897588,0.01484488,79315.0,79305.0,9.929e-05]
[1731271897887,0.43531046,79315.0,79310.0,0.02351144]
[1731271898093,0.47511046,79315.0,79310.0,0.02351144]
[1731271898390,0.47511046,79315.0,79305.0,9.929e-05]
[1731271898391,0.063005,79306.0,79305.0,9.929e-05]
[1731271898689,0.43864988,79306.0,79305.0,9.929e-05]
[1731271899086,0.81692988,79306.0,79305.0,9.929e-05]
[1731271899595,0.43864988,79306.0,79305.0,9.929e-05]
[1731271900481,0.423805,79306.0,79305.0,9.929e-05]
[1731271900781,0.3608,79306.0,79305.0,0.12209602]
[1731271900983,0.40302558,79315.0,79305.0,0.48289602]
[1731271901181,0.40302558,79315.0,79312.0,0.12199673]
[1731271901182,0.015158,79314.0,79312.0,0.12199673]
[1731271901386,0.015158,79313.0,79312.0,0.12199673]
[1731271901687,0.015158,79313.0,79311.0,0.063001]
[1731271901892,0.00012558,79315.0,79305.0,0.36257929]
[1731271901893,0.015158,79312.0,79305.0,0.36257929]
[1731271902088,0.015158,79311.0,79306.0,0.18913119]
[1731271902388,0.015158,79310.0,79305.0,0.42390529]
[1731271902590,0.015158,79310.0,79306.0,0.18905395]
[1731271902790,0.063,79313.0,79306.0,0.18905395]
[1731271902986,0.063,79313.0,79306.0,0.25205895]
[1731271904194,0.00012558,79315.0,79306.0,0.18905395]
[1731271904390,0.12199673,79312.0,79307.0,0.063004]
[1731271904691,0.063005,79306.0,79305.0,9.929e-05]
[1731271905389,0.063005,79306.0,79286.0,0.00189164]
[1731271905390,0.063018,79291.0,79286.0,0.00189164]
[1731271905590,0.063013,79296.0,79295.0,0.02305404]
[1731271905793,0.07778169,79296.0,79295.0,0.02305404]
[1731271905997,0.45610169,79296.0,79295.0,0.02305404]
[1731271906688,0.063021,79287.0,79282.0,0.3608]
[1731271906991,0.063022,79286.0,79282.0,0.3608]
[1731271907194,0.063022,79286.0,79282.0,0.38457418]
[1731271907690,0.063022,79285.0,79282.0,0.38457418]
[1731271908492,0.063023,79284.0,79282.0,0.38457418]
[1731271908796,0.063023,79284.0,79282.0,0.02377418]
[1731271908997,0.3608,79285.0,79278.0,0.0001213]
[1731271908998,0.063027,79279.0,79278.0,0.0001213]
[1731271909491,0.063027,79279.0,79278.0,0.02340758]
[1731271909796,0.063024,79283.0,79278.0,0.0001213]
[1731271909994,0.063026,79280.0,79278.0,0.0001213]
[1731271918204,0.063028,79278.0,79256.0,0.063045]
[1731271918401,0.3608,79270.0,79256.0,0.063045]
[1731271918701,0.063041,79262.0,79256.0,0.063045]
[1731271918900,0.063041,79262.0,79255.0,0.3608]
[1731271919107,0.063041,79262.0,79257.0,0.063044]
[1731271919308,0.063041,79262.0,79257.0,0.06314597]
[1731271919508,0.063038,79266.0,79261.0,0.063041]
[1731271920096,0.3608,79270.0,79263.0,0.3608]
[1731271920506,0.3608,79270.0,79257.0,0.00010197]
[1731271920507,0.063042,79260.0,79257.0,0.00010197]
[1731271920706,0.063041,79262.0,79257.0,0.00010197]
[1731271921304,0.063043,79259.0,79257.0,0.00010197]
[1731271922414,0.063039,79264.0,79257.0,0.06314597]
[1731271922600,0.3608,79270.0,79257.0,0.06314597]
[1731271922910,0.06304,79263.0,79257.0,0.06314597]
[1731271923110,0.3608,79270.0,79257.0,0.00010197]
[1731271923297,0.3608,79270.0,79258.0,0.063043]
[1731271923611,0.3608,79270.0,79262.0,0.12199673]
[1731271923811,0.3608,79270.0,79263.0,0.06304]
[1731271924007,0.423834,79270.0,79263.0,0.06304]
[1731271924205,0.423834,79270.0,79264.0,0.063038]
[1731271925699,0.12199673,79269.0,79262.0,0.3608]
[1731271926014,0.06304,79263.0,79257.0,0.00010197]
[1731271926312,0.06304,79263.0,79258.0,0.18953352]
[1731271927510,0.18503173,79269.0,79259.0,0.063042]
[1731271927813,0.05897085,79268.0,79260.0,0.1884558]
[1731271928008,0.063041,79262.0,79260.0,0.1884558]
[1731271928309,0.12199673,79263.0,79257.0,0.00010197]
[1731271928310,0.05897085,79261.0,79257.0,0.00010197]
[1731271928614,0.063043,79259.0,79257.0,0.00010197]
[1731271928811,0.05897085,79258.0,79257.0,0.00010197]
[1731271929217,0.063043,79259.0,79257.0,0.00010197]
[1731271929604,0.05872377,79258.0,79257.0,0.00010197]
[1731271930011,0.063043,79259.0,79257.0,0.00010197]
[1731271930211,0.3608,79317.0,79274.0,0.3608]
[1731271930419,0.062996,79319.0,79303.0,0.54580473]
[1731271930722,0.00155,79320.0,79309.0,0.063003]
[1731271930905,0.00155,79320.0,79319.0,0.3608]
[1731271931106,0.50174673,79320.0,79312.0,0.3608]
[1731271931312,0.12199673,79313.0,79303.0,0.02519603]
[1731271931516,0.12199673,79304.0,79289.0,0.3608]
[1731271931810,0.3608,79308.0,79289.0,0.3608]
[1731271931811,0.12199673,79290.0,79289.0,0.3608]
[1731271932512,0.12199673,79290.0,79276.0,0.00189189]
[1731271932513,0.063028,79278.0,79276.0,0.00189189]
[1731271932710,0.063028,79278.0,79260.0,0.3608]
[1731271932711,0.03909127,79277.0,79260.0,0.3608]
[1731271932905,0.03909127,79277.0,79262.0,0.3608]
[1731271932906,0.18503173,79269.0,79262.0,0.3608]
[1731271933312,0.12199673,79263.0,79262.0,0.3608]
[1731271934909,0.063035,79269.0,79262.0,0.3608]
[1731271936616,0.063035,79269.0,79263.0,0.06304]
[1731271937007,0.12199673,79270.0,79263.0,0.06304]
[1731271937206,0.12199673,79264.0,79262.0,0.3608]
[1731271937613,0.06304,79263.0,79262.0,0.3608]
[1731271937813,0.06304,79263.0,79251.0,0.3608]
[1731271937814,0.063044,79258.0,79251.0,0.3608]
[1731271938016,0.063055,79245.0,79243.0,0.3608]
[1731271938207,0.0377,79244.0,79243.0,0.3608]
[1731271938405,0.063062,79235.0,79233.0,0.3608]
[1731271939208,0.12199673,79239.0,79233.0,0.3608]
[1731271940520,0.3608,79263.0,79233.0,0.3608]
[1731271940521,0.12199673,79253.0,79233.0,0.3608]
[1731271940815,0.063018,79290.0,79252.0,0.063048]
[1731271940816,0.0388,79257.0,79252.0,0.063048]
[1731271941015,0.0388,79257.0,79256.0,0.3608]
[1731271941913,0.0388,79257.0,79249.0,0.3608]
[1731271942222,0.12199673,79254.0,79249.0,0.3608]
[1731271942415,0.06305,79250.0,79249.0,0.3608]
[1731271942608,0.063055,79244.0,79239.0,0.3608]
[1731271943820,0.063058,79241.0,79239.0,0.3608]
[1731271944409,0.18505473,79241.0,79239.0,0.3608]
[1731271944610,0.12199673,79241.0,79232.0,0.3608]
[1731271944816,0.063062,79235.0,79232.0,0.3608]
[1731271945013,0.063063,79234.0,79232.0,0.3608]
[1731271945219,8.901e-05,79233.0,79232.0,0.3608]
[1731271945917,8.901e-05,79233.0,79232.0,0.423864]
[1731271946518,8.901e-05,79233.0,79232.0,0.3608]
[1731271949116,0.02386587,79233.0,79232.0,0.3608]
[1731271949316,8.901e-05,79233.0,79232.0,0.3608]
[1731271951323,0.0152239,79233.0,79232.0,0.38446649]
[1731271951527,8.901e-05,79233.0,79232.0,0.38446649]
[1731271952515,8.901e-05,79233.0,79232.0,0.3608]
[1731271953322,8.901e-05,79233.0,79211.0,0.14172]
[1731271953323,1.45372574,79233.0,79209.0,0.3608]
[1731271953517,0.063082,79210.0,79209.0,0.3608]
[1731271954417,0.063059,79239.0,79209.0,0.3608]
[1731271954418,0.06308,79213.0,79209.0,0.3608]
[1731271954624,0.063081,79212.0,79210.0,0.0399]
[1731271957523,0.12199673,79216.0,79209.0,0.3608]
[1731271957718,0.12199673,79216.0,79193.0,0.0118]
[1731271957719,0.063088,79202.0,79200.0,0.10168]
[1731271957925,0.12199673,79201.0,79200.0,0.1]
[1731271960040,0.063088,79202.0,79200.0,0.1]
[1731271961733,0.0388,79209.0,79201.0,0.3608]
[1731271961921,0.423882,79210.0,79201.0,0.3608]
[1731271962127,0.063082,79210.0,79208.0,0.3608]
[1731271962331,0.063082,79210.0,79209.0,0.0383]
[1731271962523,0.063079,79215.0,79209.0,0.0383]
[1731271962928,0.12199673,79213.0,79209.0,0.3991]
[1731271963139,0.063066,79231.0,79209.0,0.52109673]
[1731271963335,0.16259673,79246.0,79231.0,0.063065]
[1731271963527,0.063061,79237.0,79230.0,0.3608]
[1731271964136,0.12199673,79253.0,79230.0,0.3608]
[1731271964337,0.063049,79252.0,79243.0,0.3608]
[1731271964926,0.12199673,79253.0,79243.0,0.3608]
[1731271965134,0.12199673,79247.0,79230.0,0.38623319]
[1731271965433,0.12199673,79239.0,79230.0,0.38455319]
[1731271966039,0.063065,79232.0,79230.0,0.3608]
[1731271966336,0.12199673,79239.0,79230.0,0.3608]
[1731271966537,0.063059,79239.0,79230.0,0.423866]
[1731271966734,0.14176,79245.0,79237.0,0.3608]
[1731271966934,0.063053,79246.0,79237.0,0.3608]
[1731271967131,0.063056,79243.0,79237.0,0.3608]
[1731271967437,0.063057,79242.0,79238.0,0.0399]
[1731271968630,0.063058,79241.0,79238.0,0.0399]
[1731271968936,0.3608,79247.0,79238.0,0.0399]
[1731271968937,0.063058,79240.0,79238.0,0.0399]
[1731271969644,0.3608,79247.0,79232.0,0.02309775]
[1731271969831,0.063062,79235.0,79230.0,0.3608]
[1731271970339,0.063062,79235.0,79230.0,0.38452735]
[1731271971233,0.063063,79234.0,79230.0,0.38452735]
[1731271971734,0.063057,79241.0,79233.0,0.063063]
[1731271971929,0.063057,79241.0,79237.0,0.3608]
[1731271972531,0.3608,79247.0,79237.0,0.3608]
[1731271972739,0.063058,79240.0,79237.0,0.3608]
[1731271973044,0.063059,79239.0,79237.0,0.3608]
[1731271973239,0.063068,79227.0,79226.0,0.0399]
[1731271973835,0.063079,79214.0,79213.0,0.00189338]
[1731271975833,0.063079,79214.0,79211.0,0.0408]
[1731271976242,0.06308,79213.0,79211.0,0.0408]
[1731271977653,0.063075,79220.0,79211.0,0.0408]
[1731271977850,0.063076,79218.0,79216.0,0.3608]
[1731271978735,0.2922,79237.0,79217.0,0.0382]
[1731271978936,0.18350086,79235.0,79211.0,0.10388]
[1731271979244,0.063076,79217.0,79211.0,0.10388]
[1731271979638,0.063078,79215.0,79211.0,0.10388]
[1731271980348,0.063073,79221.0,79213.0,0.063079]
[1731271980540,0.063075,79219.0,79213.0,0.063079]
[1731271980944,0.063079,79214.0,79211.0,0.0408]
[1731271981139,0.06308,79213.0,79211.0,0.0408]
[1731271981541,0.04607152,79213.0,79211.0,0.0408]
[1731271981737,0.14144,79230.0,79211.0,0.0408]
[1731271981939,0.063074,79220.0,79215.0,0.063078]
[1731271982146,0.063074,79220.0,79211.0,0.0408]
[1731271982147,0.063074,79220.0,79218.0,0.3608]
[1731271983155,0.063079,79214.0,79211.0,0.0408]
[1731271983343,0.50224,79231.0,79210.0,0.0387]
[1731271983344,0.063068,79228.0,79210.0,0.0387]
[1731271983543,0.063067,79229.0,79210.0,0.0387]
[1731271983841,0.06308,79213.0,79210.0,0.0387]
[1731271984742,0.063076,79218.0,79210.0,0.0387]
[1731271984945,0.2922,79230.0,79210.0,0.0387]
[1731271984946,0.063067,79228.0,79211.0,0.063081]
[1731271985249,0.063075,79219.0,79210.0,0.0387]
[1731271985443,0.063075,79219.0,79216.0,0.3608]
[1731271985952,0.063069,79226.0,79220.0,0.063074]
[1731271986150,0.063071,79224.0,79223.0,0.3608]
[1731271988455,0.063067,79229.0,79223.0,0.3608]
[1731271988753,0.063069,79227.0,79223.0,0.423871]
[1731271989449,0.2922,79230.0,79226.0,0.063069]
[1731271989659,0.355266,79230.0,79226.0,0.063069]
[1731271990042,0.2922,79230.0,79223.0,0.3608]
[1731271990243,0.06307,79225.0,79223.0,0.3608]
[1731271990455,0.3608,79233.0,79224.0,0.063071]
[1731271990653,0.063067,79229.0,79224.0,0.063071]
[1731271991355,0.3608,79233.0,79223.0,0.3608]
[1731271991544,0.3608,79241.0,79233.0,0.063063]
[1731271991749,0.3608,79241.0,79231.0,0.063065]
[1731271991947,0.3608,79241.0,79230.0,0.3608]
[1731271992150,0.063064,79233.0,79230.0,0.3608]
[1731271992458,0.063065,79232.0,79230.0,0.3608]
[1731271994357,0.063071,79224.0,79223.0,0.3608]
[1731271994555,0.12239925,79224.0,79210.0,0.36248]
[1731271994859,0.12239925,79217.0,79206.0,0.3608]
[1731271995248,0.4363,79223.0,79206.0,0.3608]
[1731271995249,0.063084,79208.0,79206.0,0.3608]
[1731271995649,0.063087,79203.0,79202.0,0.02350338]
[1731271995850,0.063087,79203.0,79200.0,0.1]
[1731271997048,0.3608,79208.0,79200.0,0.1]
[1731271997255,0.12239925,79218.0,79200.0,0.1]
[1731271997560,0.12239925,79218.0,79204.0,0.3608]
[1731271997561,0.063083,79209.0,79204.0,0.3608]
[1731271998057,0.12239925,79211.0,79204.0,0.3608]
[1731271998250,0.12239925,79211.0,79200.0,0.1]
[1731271998451,0.063081,79211.0,79202.0,0.3608]
[1731271998960,0.063082,79210.0,79203.0,0.063087]
[1731272000158,0.063084,79208.0,79202.0,0.3608]
[1731272000661,0.063084,79207.0,79202.0,0.3608]
[1731272001557,8.915e-05,79216.0,79202.0,0.3608]
[1731272001758,0.06308,79213.0,79209.0,0.3608]
[1731272002565,8.915e-05,79216.0,79209.0,0.3608]
[1731272002566,0.063082,79210.0,79209.0,0.3608]
[1731272002773,8.915e-05,79216.0,79209.0,0.3608]
[1731272003661,8.915e-05,79216.0,79212.0,0.06308]
[1731272003849,8.915e-05,79216.0,79211.0,0.3608]
[1731272004054,8.915e-05,79216.0,79214.0,0.063078]
[1731272009557,0.00189422,79233.0,79215.0,0.37872]
[1731272009862,0.00189422,79233.0,79231.0,0.3608]
[1731272010174,0.00189422,79233.0,79224.0,0.3608]
[1731272010366,0.00189422,79233.0,79228.0,0.063067]
[1731272010570,0.00013812,79232.0,79230.0,0.12239925]
[1731272010872,0.00013812,79232.0,79231.0,0.423865]
[1731272012676,0.00013812,79232.0,79231.0,0.3608]
[1731272013263,0.063065,79231.0,79224.0,0.02310805]
[1731272013475,0.063065,79231.0,79223.0,0.3608]
[1731272014966,0.063065,79231.0,79225.0,0.063069]
[1731272015268,0.00013812,79232.0,79223.0,0.3608]
[1731272015467,0.06307,79226.0,79223.0,0.3608]
[1731272015773,0.00013812,79232.0,79223.0,0.48319925]
[1731272016070,0.00013812,79232.0,79231.0,0.3608]
[1731272016266,0.00013812,79232.0,79230.0,0.063065]
[1731272016267,0.00013812,79232.0,79223.0,0.3608]
[1731272016469,0.063068,79228.0,79221.0,0.3608]
[1731272016775,0.063068,79228.0,79223.0,0.063071]
[1731272019680,0.063068,79228.0,79224.0,0.06307]
[1731272020471,0.04,79231.0,79221.0,0.3608]
[1731272020673,0.04,79231.0,79221.0,0.38408631]
[1731272021174,0.00013812,79232.0,79230.0,0.063066]
[1731272023272,0.00013812,79232.0,79228.0,0.3608]
[1731272023273,0.00250454,79231.0,79228.0,0.3608]
[1731272023966,0.063066,79230.0,79228.0,0.3608]
[1731272024477,0.00250454,79229.0,79228.0,0.3608]
[1731272024672,0.12490379,79229.0,79224.0,0.02395868]
[1731272024872,0.063078,79215.0,79212.0,0.3608]
[1731272025190,0.063074,79220.0,79212.0,0.38402597]
[1731272025378,0.00250454,79216.0,79214.0,0.063078]
[1731272026480,0.00250454,79215.0,79214.0,0.063078]
[1731272028178,0.00250454,79215.0,79212.0,0.38578597]
[1731272028179,0.063079,79214.0,79212.0,0.38578597]
[1731272028383,0.100479,79214.0,79212.0,0.38402597]
[1731272028682,0.00250454,79213.0,79212.0,0.38402597]
[1731272031787,0.00250454,79213.0,79200.0,0.1]
[1731272031788,0.74202454,79213.0,79200.0,0.1]
[1731272032080,0.18548825,79201.0,79200.0,0.1]
[1731272032280,0.20056966,79201.0,79200.0,0.1]
[1731272032481,0.2030742,79201.0,79200.0,0.1]
[1731272032678,0.2030742,79201.0,79200.0,0.12290802]
[1731272033277,0.2030742,79201.0,79200.0,0.1]
[1731272034283,0.08067495,79201.0,79200.0,0.1]
[1731272034479,0.06559354,79201.0,79200.0,0.1]
[1731272037079,0.063096,79192.0,79191.0,0.00012965]
[1731272037286,0.56217062,79192.0,79191.0,0.00012965]
[1731272037484,0.56467516,79192.0,79191.0,0.00012965]
[1731272037684,0.44227591,79192.0,79191.0,6.505e-05]
[1731272037979,0.37917991,79192.0,79191.0,6.505e-05]
[1731272038183,0.01837991,79192.0,79191.0,6.505e-05]
[1731272041392,0.00250454,79192.0,79191.0,6.505e-05]
[1731272041785,0.063102,79185.0,79170.0,0.0352]
[1731272042095,0.423905,79182.0,79170.0,0.0352]
[1731272042391,0.423905,79182.0,79170.0,0.05887863]
[1731272042694,0.423905,79182.0,79166.0,0.037]
[1731272042695,0.063117,79166.0,79161.0,0.0059]
[1731272042884,0.063117,79166.0,79162.0,0.02390416]
[1731272043493,0.063117,79166.0,79159.0,0.06272397]
[1731272043794,0.06562154,79166.0,79159.0,0.06272397]
[1731272044287,0.08349822,79166.0,79159.0,0.06272397]
[1731272044493,0.06576108,79166.0,79159.0,0.06272397]
[1731272045178,0.08296104,79166.0,79159.0,0.06272397]
[1731272045382,0.06576108,79166.0,79160.0,0.036]
[1731272045783,0.063121,79162.0,79160.0,0.036]
[1731272046679,0.00250454,79161.0,79160.0,0.036]
[1731272046884,0.36330454,79161.0,79152.0,0.02363634]
[1731272047087,0.12239925,79153.0,79143.0,0.3959]
[1731272047290,0.063128,79152.0,79143.0,0.3959]
[1731272047491,0.18552725,79152.0,79147.0,0.02305606]
[1731272047704,0.00250454,79151.0,79147.0,0.02305606]
[1731272048284,0.01973675,79151.0,79147.0,0.02305606]
[1731272049287,0.01973675,79151.0,79143.0,0.3959]
[1731272049488,0.00250454,79151.0,79143.0,0.3959]
[1731272049788,0.00250454,79151.0,79144.0,0.02337857]
[1731272050184,0.01997264,79151.0,79144.0,0.02337857]
[1731272050488,0.00250454,79151.0,79144.0,0.02337857]
[1731272053491,0.12490379,79151.0,79144.0,0.02337857]
[1731272056299,0.12239925,79154.0,79150.0,0.36091301]
[1731272056492,0.12239925,79154.0,79150.0,0.39711301]
[1731272056798,0.063128,79152.0,79150.0,0.03631301]
[1731272056988,0.063128,79152.0,79150.0,0.00011301]
[1731272057895,0.3608,79151.0,79150.0,0.00011301]
[1731272064999,0.3989,79151.0,79150.0,0.00011301]
[1731272065798,0.3989,79151.0,79136.0,0.3667]
[1731272066001,0.063138,79140.0,79136.0,0.36248]
[1731272066201,0.07993745,79140.0,79137.0,0.02301694]
[1731272066598,0.063138,79140.0,79137.0,0.02301694]
[1731272067294,0.18553725,79140.0,79137.0,0.02301694]
[1731272067499,0.063138,79140.0,79137.0,0.02301694]
[1731272068204,0.063139,79138.0,79137.0,0.02301694]
[1731272068620,0.063142,79134.0,79133.0,0.05054781]
[1731272070003,0.063139,79139.0,79134.0,0.063142]
[1731272070213,0.063139,79139.0,79137.0,0.3608]
[1731272070615,0.01636975,79138.0,79137.0,0.3608]
[1731272070908,0.01636991,79138.0,79137.0,0.3608]
[1731272071108,0.01636991,79138.0,79133.0,0.07419242]
[1731272071411,0.063141,79136.0,79133.0,0.07419242]
[1731272071607,0.01637409,79135.0,79133.0,0.13733542]
[1731272071997,0.063136,79142.0,79139.0,0.063138]
[1731272072206,0.0163912,79141.0,79139.0,0.063138]
[1731272072509,0.063136,79142.0,79139.0,0.063138]
[1731272072724,0.01663792,79141.0,79139.0,0.063138]
[1731272073010,0.01663792,79140.0,79139.0,0.063138]
[1731272073212,0.07977492,79141.0,79137.0,0.3608]
[1731272073508,0.01663792,79140.0,79138.0,0.063139]
[1731272073719,0.01663792,79139.0,79138.0,0.063139]
[1731272074008,0.423935,79143.0,79139.0,0.063138]
[1731272074210,0.3608,79150.0,79147.0,0.063131]
[1731272074410,0.3608,79150.0,79138.0,0.12239925]
[1731272074411,0.3608,79150.0,79148.0,0.0729]
[1731272074609,0.06313,79149.0,79148.0,0.0729]
[1731272076008,0.063126,79155.0,79148.0,0.09617443]
[1731272076717,0.063127,79154.0,79148.0,0.15930543]
[1731272077019,0.423924,79158.0,79153.0,0.063127]
[1731272077315,0.10471731,79157.0,79153.0,0.063127]
[1731272077501,0.04159331,79156.0,79154.0,0.036]
[1731272077701,0.063125,79156.0,79154.0,0.036]
[1731272078313,0.063125,79156.0,79148.0,0.09617442]
[1731272078621,0.063124,79157.0,79148.0,0.09617442]
[1731272078916,0.06313,79150.0,79148.0,0.09617442]
[1731272079311,0.06313,79150.0,79148.0,0.05987442]
[1731272080316,0.06313,79150.0,79148.0,0.03659999]
[1731272081815,0.06313,79150.0,79139.0,0.063138]
[1731272081816,0.063136,79142.0,79139.0,0.063138]
[1731272082113,0.063136,79142.0,79140.0,0.0397]
[1731272082914,0.3608,79151.0,79141.0,0.86227925]
[1731272083216,0.0781,79175.0,79150.0,0.3608]
[1731272083521,0.06325654,79166.0,79158.0,0.3608]
[1731272083719,0.00013954,79166.0,79159.0,0.0733]
[1731272084112,0.00108755,79162.0,79159.0,0.0733]
[1731272084426,0.06420755,79162.0,79159.0,0.0733]
[1731272085122,0.00108755,79161.0,79159.0,0.0733]
[1731272085718,0.00108755,79161.0,79159.0,0.1008813]
[1731272086120,0.00108755,79160.0,79159.0,0.1008813]
[1731272086530,0.00173398,79160.0,79159.0,0.1008813]
[1731272087722,0.063129,79151.0,79142.0,0.14052]
[1731272087919,0.063129,79151.0,79147.0,0.0398]
[1731272088123,0.063125,79157.0,79150.0,0.3608]
[1731272088626,0.00173398,79154.0,79152.0,0.063128]
[1731272089626,0.00173398,79153.0,79152.0,0.063128]